[Event "*** MasterClass Titled Tuesday Blitz"]
[Site "Chess.com"]
[Date "2017.07.04"]
[Round "6"]
[White "Rokis13"]
[Black "aNaartjieZA"]
[Result "1/2-1/2"]
[WhiteElo "2333"]
[BlackElo "2313"]
[TimeControl "180+2"]
[EndTime "14:26:05 PDT"]
[Termination "Game drawn by stalemate"]

1. e4 {[%clk 0:03:00.1]} 1... e6 {[%clk 0:03:00.4]} 2. d3 {[%clk 0:02:56.3]}
2... d5 {[%clk 0:03:00.9]} 3. Nd2 {[%clk 0:02:58.2]} 3... Nf6 {[%clk 0:03:00.2]}
4. Ngf3 {[%clk 0:02:59.2]} 4... Nc6 {[%clk 0:03:01.1]} 5. g3 {[%clk 0:03:00]}
5... dxe4 {[%clk 0:03:01.7]} 6. dxe4 {[%clk 0:03:00.4]} 6... e5 {[%clk
0:03:02.2]} 7. Bg2 {[%clk 0:02:58.6]} 7... Bc5 {[%clk 0:03:02.7]} 8. O-O {[%clk
0:02:58.6]} 8... O-O {[%clk 0:03:03.4]} 9. c3 {[%clk 0:02:58.9]} 9... a5 {[%clk
0:03:03.9]} 10. Re1 {[%clk 0:02:56.7]} 10... Ng4 {[%clk 0:02:59.3]} 11. Re2
{[%clk 0:02:56.6]} 11... b6 {[%clk 0:02:45.7]} 12. h3 {[%clk 0:02:49.2]} 12...
Nf6 {[%clk 0:02:45.8]} 13. Re1 {[%clk 0:02:42.7]} 13... Qe7 {[%clk 0:02:40.4]}
14. Nb3 {[%clk 0:02:42.5]} 14... Rd8 {[%clk 0:02:39.1]} 15. Qc2 {[%clk 0:02:42]}
15... Bd6 {[%clk 0:02:39.2]} 16. Bg5 {[%clk 0:02:42.5]} 16... h6 {[%clk
0:02:39]} 17. Bxf6 {[%clk 0:02:36.7]} 17... Qxf6 {[%clk 0:02:39.8]} 18. Rad1
{[%clk 0:02:38.4]} 18... Ba6 {[%clk 0:02:34.1]} 19. a3 {[%clk 0:02:30.8]} 19...
Qe6 {[%clk 0:02:22.3]} 20. Nbd2 {[%clk 0:02:24]} 20... Bc5 {[%clk 0:02:18.7]}
21. Nb3 {[%clk 0:02:20.7]} 21... Bd6 {[%clk 0:02:17.3]} 22. Nbd2 {[%clk
0:02:17.8]} 22... Rd7 {[%clk 0:02:11.8]} 23. Nf1 {[%clk 0:02:17]} 23... Bc4
{[%clk 0:02:07.8]} 24. N3d2 {[%clk 0:02:14.4]} 24... Ba6 {[%clk 0:02:05.8]} 25.
Ne3 {[%clk 0:02:14.3]} 25... Rad8 {[%clk 0:02:00.7]} 26. Ndf1 {[%clk 0:02:13.1]}
26... Bc5 {[%clk 0:01:54]} 27. Nd5 {[%clk 0:02:12.1]} 27... Ne7 {[%clk
0:01:47.6]} 28. Nfe3 {[%clk 0:02:10.7]} 28... c6 {[%clk 0:01:48.3]} 29. b4
{[%clk 0:02:04.3]} 29... cxd5 {[%clk 0:01:43.9]} 30. exd5 {[%clk 0:02:03.4]}
30... Qd6 {[%clk 0:01:44.5]} 31. bxc5 {[%clk 0:02:01]} 31... Qxc5 {[%clk
0:01:45.2]} 32. Qb3 {[%clk 0:01:56.8]} 32... Rc8 {[%clk 0:01:31.8]} 33. Rb1
{[%clk 0:01:45.6]} 33... Rd6 {[%clk 0:01:32.6]} 34. Rec1 {[%clk 0:01:44.6]}
34... Bd3 {[%clk 0:01:28.7]} 35. Rb2 {[%clk 0:01:44.7]} 35... e4 {[%clk
0:01:29]} 36. c4 {[%clk 0:01:42.6]} 36... f5 {[%clk 0:01:04.2]} 37. Bf1 {[%clk
0:01:41.6]} 37... Bxf1 {[%clk 0:01:03.5]} 38. Rxf1 {[%clk 0:01:39.9]} 38... g5
{[%clk 0:01:03.8]} 39. f4 {[%clk 0:01:22.1]} 39... exf3 {[%clk 0:00:57.6]} 40.
Rxf3 {[%clk 0:01:21.6]} 40... Rf8 {[%clk 0:00:54.4]} 41. Kg2 {[%clk 0:01:17.1]}
41... Rdf6 {[%clk 0:00:52.8]} 42. Rbf2 {[%clk 0:01:15.9]} 42... h5 {[%clk
0:00:49.8]} 43. Qd3 {[%clk 0:01:04.5]} 43... f4 {[%clk 0:00:50.2]} 44. gxf4
{[%clk 0:01:04.3]} 44... gxf4 {[%clk 0:00:51]} 45. Rf1 {[%clk 0:00:43.8]} 45...
Ng6 {[%clk 0:00:36.1]} 46. Kh2 {[%clk 0:00:40.5]} 46... Ne5 {[%clk 0:00:21.3]}
47. Rg1+ {[%clk 0:00:27.2]} 47... Kh8 {[%clk 0:00:22.1]} 48. Qe4 {[%clk
0:00:28]} 48... Nxf3+ {[%clk 0:00:19.6]} 49. Qxf3 {[%clk 0:00:29.9]} 49... Qd6
{[%clk 0:00:15]} 50. Ng2 {[%clk 0:00:25.8]} 50... Qe5 {[%clk 0:00:15.2]} 51. Re1
{[%clk 0:00:25]} 51... Qg5 {[%clk 0:00:15.8]} 52. Re4 {[%clk 0:00:20.3]} 52...
Rg8 {[%clk 0:00:16.1]} 53. Qf2 {[%clk 0:00:19.3]} 53... Qg3+ {[%clk 0:00:16.4]}
54. Qxg3 {[%clk 0:00:19.8]} 54... fxg3+ {[%clk 0:00:17.9]} 55. Kg1 {[%clk
0:00:21.2]} 55... Rf2 {[%clk 0:00:18.8]} 56. Rh4 {[%clk 0:00:20.7]} 56... Rg5
{[%clk 0:00:19.6]} 57. Nf4 {[%clk 0:00:20.9]} 57... Rc2 {[%clk 0:00:19]} 58.
Nxh5 {[%clk 0:00:21.2]} 58... Rc1+ {[%clk 0:00:18.9]} 59. Kg2 {[%clk 0:00:21.7]}
59... Rc2+ {[%clk 0:00:20]} 60. Kg1 {[%clk 0:00:22.8]} 60... g2 {[%clk
0:00:21.5]} 61. Ng3+ {[%clk 0:00:17]} 61... Kg8 {[%clk 0:00:21.1]} 62. Rg4
{[%clk 0:00:17.9]} 62... Rxg4 {[%clk 0:00:21.8]} 63. hxg4 {[%clk 0:00:19.8]}
63... Rxc4 {[%clk 0:00:23]} 64. Kxg2 {[%clk 0:00:20.4]} 64... Rxg4 {[%clk
0:00:24.5]} 65. Kf3 {[%clk 0:00:20.3]} 65... Rd4 {[%clk 0:00:25.9]} 66. Nf5
{[%clk 0:00:21.1]} 66... Rd1 {[%clk 0:00:27.4]} 67. Ke4 {[%clk 0:00:21.8]} 67...
Kf7 {[%clk 0:00:28.1]} 68. Nd6+ {[%clk 0:00:22.1]} 68... Ke7 {[%clk 0:00:27.2]}
69. Nc4 {[%clk 0:00:24]} 69... Rb1 {[%clk 0:00:25.3]} 70. Ke5 {[%clk 0:00:23.8]}
70... Re1+ {[%clk 0:00:25.4]} 71. Kd4 {[%clk 0:00:24.3]} 71... Rd1+ {[%clk
0:00:25.9]} 72. Ke5 {[%clk 0:00:24.7]} 72... Rb1 {[%clk 0:00:27.4]} 73. d6+
{[%clk 0:00:23]} 73... Kd7 {[%clk 0:00:28.1]} 74. Kd5 {[%clk 0:00:24.1]} 74...
Rb5+ {[%clk 0:00:27.7]} 75. Kd4 {[%clk 0:00:24.2]} 75... Rb1 {[%clk 0:00:28.5]}
76. Kd5 {[%clk 0:00:24.3]} 76... a4 {[%clk 0:00:29.5]} 77. Ne5+ {[%clk
0:00:24.4]} 77... Kc8 {[%clk 0:00:29.8]} 78. Ke6 {[%clk 0:00:24.5]} 78... Re1
{[%clk 0:00:29.4]} 79. Kd5 {[%clk 0:00:22.9]} 79... Rxe5+ {[%clk 0:00:29.2]} 80.
Kxe5 {[%clk 0:00:23.5]} 80... b5 {[%clk 0:00:27.8]} 81. Kd4 {[%clk 0:00:24.5]}
81... Kd7 {[%clk 0:00:27.3]} 82. Kc5 {[%clk 0:00:25.1]} 82... Kd8 {[%clk
0:00:28.5]} 83. Kxb5 {[%clk 0:00:25.7]} 83... Kd7 {[%clk 0:00:29.6]} 84. Kc5
{[%clk 0:00:26.6]} 84... Kd8 {[%clk 0:00:29.8]} 85. Kc6 {[%clk 0:00:27.9]} 85...
Kc8 {[%clk 0:00:31]} 86. Kb5 {[%clk 0:00:29.2]} 86... Kd7 {[%clk 0:00:32.1]} 87.
Kc5 {[%clk 0:00:31.1]} 87... Kd8 {[%clk 0:00:32.1]} 88. Kd5 {[%clk 0:00:33]}
88... Kd7 {[%clk 0:00:32.9]} 89. Ke5 {[%clk 0:00:34]} 89... Kd8 {[%clk
0:00:33.6]} 90. Ke6 {[%clk 0:00:35]} 90... Ke8 {[%clk 0:00:34.5]} 91. d7+ {[%clk
0:00:36.3]} 91... Kd8 {[%clk 0:00:35.5]} 92. Kd6 {[%clk 0:00:38.2]} 1/2-1/2

[Event "*** MasterClass Titled Tuesday Blitz"]
[Site "Chess.com"]
[Date "2017.07.04"]
[Round "6"]
[White "Popopuiyt"]
[Black "Zufi1811"]
[Result "1/2-1/2"]
[WhiteElo "2240"]
[BlackElo "2391"]
[TimeControl "180+2"]
[EndTime "14:26:09 PDT"]
[Termination "Game drawn by stalemate"]

1. d4 {[%clk 0:03:01.9]} 1... Nf6 {[%clk 0:03:00.1]} 2. c4 {[%clk 0:03:01.8]}
2... e6 {[%clk 0:02:59.9]} 3. Nc3 {[%clk 0:03:02.9]} 3... d5 {[%clk 0:02:58.5]}
4. cxd5 {[%clk 0:03:03.8]} 4... exd5 {[%clk 0:03:00.4]} 5. Bg5 {[%clk
0:03:05.3]} 5... c6 {[%clk 0:03:01.6]} 6. e3 {[%clk 0:03:06.7]} 6... Be7 {[%clk
0:03:02.6]} 7. Bd3 {[%clk 0:03:08.2]} 7... Nbd7 {[%clk 0:03:03.3]} 8. Nf3 {[%clk
0:03:07]} 8... Nh5 {[%clk 0:03:04]} 9. Bxe7 {[%clk 0:03:07]} 9... Qxe7 {[%clk
0:03:05.9]} 10. O-O {[%clk 0:03:08.2]} 10... Nhf6 {[%clk 0:03:06.8]} 11. Rb1
{[%clk 0:03:00.8]} 11... O-O {[%clk 0:03:00.4]} 12. b4 {[%clk 0:03:01.6]} 12...
a6 {[%clk 0:03:00]} 13. a4 {[%clk 0:03:01.9]} 13... Nb6 {[%clk 0:03:00.7]} 14.
b5 {[%clk 0:03:00.2]} 14... axb5 {[%clk 0:03:02.6]} 15. axb5 {[%clk 0:03:01.1]}
15... c5 {[%clk 0:03:02.9]} 16. dxc5 {[%clk 0:02:53.9]} 16... Qxc5 {[%clk
0:03:04.8]} 17. Ne2 {[%clk 0:02:48.5]} 17... Be6 {[%clk 0:02:44.5]} 18. Nfd4
{[%clk 0:02:41.3]} 18... Rfe8 {[%clk 0:02:45.3]} 19. h3 {[%clk 0:02:36]} 19...
Ne4 {[%clk 0:02:43.8]} 20. Qc1 {[%clk 0:02:16]} 20... Qd6 {[%clk 0:02:34.3]} 21.
Rd1 {[%clk 0:02:12.9]} 21... Rec8 {[%clk 0:02:25.6]} 22. Qb2 {[%clk 0:02:13.8]}
22... Na4 {[%clk 0:02:25.4]} 23. Qb4 {[%clk 0:02:09.5]} 23... Nac3 {[%clk
0:01:51.7]} 24. Qxd6 {[%clk 0:01:38.7]} 24... Nxd6 {[%clk 0:01:53.6]} 25. Nxc3
{[%clk 0:01:39.2]} 25... Rxc3 {[%clk 0:01:55.5]} 26. Kf1 {[%clk 0:01:31.5]}
26... Kf8 {[%clk 0:01:47]} 27. Ke1 {[%clk 0:01:28.1]} 27... Ke7 {[%clk
0:01:46.6]} 28. Kd2 {[%clk 0:01:23.5]} 28... Rca3 {[%clk 0:01:42.8]} 29. Rdc1
{[%clk 0:01:17.7]} 29... Ra2+ {[%clk 0:01:36.8]} 30. Rc2 {[%clk 0:01:16.3]}
30... Ne4+ {[%clk 0:01:28.4]} 31. Bxe4 {[%clk 0:01:15.2]} 31... dxe4 {[%clk
0:01:30.2]} 32. Rc1 {[%clk 0:01:14.2]} 32... g6 {[%clk 0:01:14]} 33. Rxa2 {[%clk
0:01:13.7]} 33... Rxa2+ {[%clk 0:01:15.4]} 34. Rc2 {[%clk 0:01:14.8]} 34...
Rxc2+ {[%clk 0:01:11.3]} 35. Kxc2 {[%clk 0:01:15.8]} 35... Bc4 {[%clk
0:01:09.4]} 36. g3 {[%clk 0:01:11.6]} 36... Kd6 {[%clk 0:01:10.3]} 37. Kc3
{[%clk 0:01:08]} 37... Kc5 {[%clk 0:01:11.4]} 38. b6 {[%clk 0:00:53.5]} 38...
Bd5 {[%clk 0:01:05.2]} 39. h4 {[%clk 0:00:52.5]} 39... Kxb6 {[%clk 0:01:05.3]}
40. Kb4 {[%clk 0:00:53.4]} 40... Be6 {[%clk 0:00:50.5]} 41. Nc2 {[%clk 0:00:51]}
41... Kc6 {[%clk 0:00:50.1]} 42. Nd4+ {[%clk 0:00:52.1]} 42... Kd5 {[%clk
0:00:49.2]} 43. Nc2 {[%clk 0:00:52.6]} 43... Ke5 {[%clk 0:00:43.5]} 44. Nd4
{[%clk 0:00:52.5]} 44... Bd5 {[%clk 0:00:31.1]} 45. Kc5 {[%clk 0:00:52.4]} 45...
h5 {[%clk 0:00:31]} 46. Kb6 {[%clk 0:00:45.7]} 46... f6 {[%clk 0:00:31.1]} 47.
Kc5 {[%clk 0:00:42.9]} 47... g5 {[%clk 0:00:31.9]} 48. Kb6 {[%clk 0:00:42.8]}
48... gxh4 {[%clk 0:00:27.6]} 49. gxh4 {[%clk 0:00:43.4]} 49... f5 {[%clk
0:00:29.5]} 50. Kc5 {[%clk 0:00:43.7]} 50... Bf7 {[%clk 0:00:25.3]} 51. Kb6
{[%clk 0:00:42.9]} 51... f4 {[%clk 0:00:16.2]} 52. Kxb7 {[%clk 0:00:42.5]} 52...
fxe3 {[%clk 0:00:10.8]} 53. fxe3 {[%clk 0:00:43.3]} 53... Kd5 {[%clk 0:00:11.9]}
54. Kc7 {[%clk 0:00:43.1]} 54... Kc4 {[%clk 0:00:10.8]} 55. Kd6 {[%clk
0:00:41.3]} 55... Kd3 {[%clk 0:00:12.6]} 56. Nf5 {[%clk 0:00:34.7]} 56... Bg6
{[%clk 0:00:11.8]} 57. Ne7 {[%clk 0:00:25.8]} 57... Bh7 {[%clk 0:00:07.3]} 58.
Nd5 {[%clk 0:00:26.3]} 58... Bg8 {[%clk 0:00:09.4]} 59. Nf6 {[%clk 0:00:19.2]}
59... Kxe3 {[%clk 0:00:11.3]} 60. Nxg8 {[%clk 0:00:19.6]} 60... Kf4 {[%clk
0:00:11.2]} 61. Nf6 {[%clk 0:00:20.8]} 61... e3 {[%clk 0:00:10]} 62. Nd5+ {[%clk
0:00:21.7]} 62... Ke4 {[%clk 0:00:10.4]} 63. Ke6 {[%clk 0:00:19.6]} 63... Kf3
{[%clk 0:00:05.2]} 64. Nxe3 {[%clk 0:00:17.3]} 64... Kxe3 {[%clk 0:00:07.1]} 65.
Kf5 {[%clk 0:00:18.4]} 65... Kd4 {[%clk 0:00:09]} 66. Kg5 {[%clk 0:00:18.3]}
66... Ke5 {[%clk 0:00:10.9]} 67. Kg6 {[%clk 0:00:19.8]} 67... Ke6 {[%clk
0:00:10.1]} 68. Kg7 {[%clk 0:00:21.1]} 68... Ke7 {[%clk 0:00:09.9]} 69. Kh6
{[%clk 0:00:22.2]} 69... Kf8 {[%clk 0:00:11.8]} 70. Kxh5 {[%clk 0:00:23.9]}
70... Kg8 {[%clk 0:00:13.7]} 71. Kg6 {[%clk 0:00:25.8]} 71... Kh8 {[%clk
0:00:15.2]} 72. h5 {[%clk 0:00:27.7]} 72... Kg8 {[%clk 0:00:15.9]} 73. h6 {[%clk
0:00:29.6]} 73... Kh8 {[%clk 0:00:16.6]} 74. h7 {[%clk 0:00:31.5]} 1/2-1/2

[Event "*** MasterClass Titled Tuesday Blitz"]
[Site "Chess.com"]
[Date "2017.07.04"]
[Round "6"]
[White "vpantev"]
[Black "Fandorine"]
[Result "1/2-1/2"]
[WhiteElo "2463"]
[BlackElo "2663"]
[TimeControl "180+2"]
[EndTime "14:27:27 PDT"]
[Termination "Game drawn - insufficient material"]

1. d4 {[%clk 0:03:01.9]} 1... Nf6 {[%clk 0:02:59.5]} 2. Nf3 {[%clk 0:03:02.4]}
2... b6 {[%clk 0:02:57.7]} 3. Bf4 {[%clk 0:03:02.6]} 3... Bb7 {[%clk 0:02:58.7]}
4. e3 {[%clk 0:03:03.6]} 4... g6 {[%clk 0:02:59.6]} 5. Be2 {[%clk 0:03:03.6]}
5... Bg7 {[%clk 0:03:01.1]} 6. O-O {[%clk 0:03:04.5]} 6... O-O {[%clk
0:03:02.6]} 7. h3 {[%clk 0:03:05.6]} 7... d6 {[%clk 0:03:02.2]} 8. c4 {[%clk
0:03:01.3]} 8... c5 {[%clk 0:03:03.1]} 9. d5 {[%clk 0:02:59.1]} 9... Nh5 {[%clk
0:03:01.7]} 10. Nc3 {[%clk 0:02:59.4]} 10... Nxf4 {[%clk 0:03:02.5]} 11. exf4
{[%clk 0:03:00.2]} 11... a6 {[%clk 0:03:03.2]} 12. a4 {[%clk 0:03:00.4]} 12...
Re8 {[%clk 0:03:02.7]} 13. Bd3 {[%clk 0:03:00]} 13... Nd7 {[%clk 0:03:02]} 14.
f5 {[%clk 0:02:55.3]} 14... Ne5 {[%clk 0:02:51.7]} 15. Nxe5 {[%clk 0:02:55.6]}
15... Bxe5 {[%clk 0:02:53.6]} 16. Qc2 {[%clk 0:02:44.6]} 16... Kg7 {[%clk
0:02:50.6]} 17. Rae1 {[%clk 0:02:37.9]} 17... Bc8 {[%clk 0:02:34.7]} 18. Re2
{[%clk 0:02:37.2]} 18... Bd7 {[%clk 0:02:27.1]} 19. Rfe1 {[%clk 0:02:33.7]}
19... Qc8 {[%clk 0:02:18.4]} 20. Rxe5 {[%clk 0:02:20.9]} 20... dxe5 {[%clk
0:02:18.8]} 21. Rxe5 {[%clk 0:02:13.2]} 21... f6 {[%clk 0:02:17.4]} 22. Re3
{[%clk 0:02:12.8]} 22... Bxf5 {[%clk 0:02:18.3]} 23. Ne4 {[%clk 0:02:09.2]}
23... Bxe4 {[%clk 0:02:11.2]} 24. Bxe4 {[%clk 0:02:09]} 24... Qd7 {[%clk
0:02:08.9]} 25. Rg3 {[%clk 0:02:09.5]} 25... f5 {[%clk 0:01:12.9]} 26. Bxf5
{[%clk 0:01:59.8]} 26... Qd6 {[%clk 0:01:12.3]} 27. Be6 {[%clk 0:02:00.4]} 27...
Rf8 {[%clk 0:01:12.1]} 28. h4 {[%clk 0:01:52.1]} 28... Rf6 {[%clk 0:01:09.8]}
29. h5 {[%clk 0:01:50.2]} 29... Raf8 {[%clk 0:01:10.1]} 30. Qc3 {[%clk
0:01:40.9]} 30... Qf4 {[%clk 0:01:07.3]} 31. Rf3 {[%clk 0:01:34.6]} 31... Qg5
{[%clk 0:01:03]} 32. hxg6 {[%clk 0:01:31.6]} 32... hxg6 {[%clk 0:01:04.9]} 33.
Rg3 {[%clk 0:01:29.4]} 33... Qf4 {[%clk 0:00:53.2]} 34. Rf3 {[%clk 0:01:29.7]}
34... Qh4 {[%clk 0:00:42.9]} 35. Rg3 {[%clk 0:01:20.3]} 35... a5 {[%clk
0:00:33.7]} 36. b3 {[%clk 0:01:20.1]} 36... Rh8 {[%clk 0:00:29.4]} 37. Bh3
{[%clk 0:01:08.2]} 37... Rf8 {[%clk 0:00:27.9]} 38. Rf3 {[%clk 0:01:05.2]} 38...
Qd4 {[%clk 0:00:20.2]} 39. Qxd4 {[%clk 0:01:04.9]} 39... cxd4 {[%clk 0:00:22.1]}
40. Rd3 {[%clk 0:00:58]} 40... Rxf2 {[%clk 0:00:21.7]} 41. Rxd4 {[%clk 0:00:59]}
41... R8f4 {[%clk 0:00:18.7]} 42. Rd3 {[%clk 0:00:59.3]} 42... Rf1+ {[%clk
0:00:16]} 43. Kh2 {[%clk 0:00:59.8]} 43... Re1 {[%clk 0:00:13.7]} 44. d6 {[%clk
0:00:57.7]} 44... exd6 {[%clk 0:00:15.2]} 45. Rxd6 {[%clk 0:00:58.4]} 45... Rf6
{[%clk 0:00:16.7]} 46. Rd5 {[%clk 0:00:58.3]} 46... Rc1 {[%clk 0:00:11.2]} 47.
Rb5 {[%clk 0:00:57.4]} 47... Rc3 {[%clk 0:00:10.6]} 48. Kg1 {[%clk 0:00:54.1]}
48... Kh6 {[%clk 0:00:09.8]} 49. Kh2 {[%clk 0:00:53.8]} 49... Rd6 {[%clk
0:00:10.1]} 50. b4 {[%clk 0:00:51.1]} 50... axb4 {[%clk 0:00:08.7]} 51. Rxb4
{[%clk 0:00:52]} 51... Rf6 {[%clk 0:00:09.4]} 52. Rb5 {[%clk 0:00:51.1]} 52...
Rxc4 {[%clk 0:00:09.1]} 53. a5 {[%clk 0:00:52.1]} 53... bxa5 {[%clk 0:00:09.2]}
54. Rxa5 {[%clk 0:00:52.1]} 54... g5 {[%clk 0:00:10.5]} 55. Kg3 {[%clk
0:00:52.2]} 55... Rc3+ {[%clk 0:00:07.3]} 56. Kh2 {[%clk 0:00:52.9]} 56... Rc4
{[%clk 0:00:06.2]} 57. Kg3 {[%clk 0:00:53]} 57... Kg6 {[%clk 0:00:05.8]} 58. Bg4
{[%clk 0:00:51.4]} 58... Rc3+ {[%clk 0:00:06.6]} 59. Bf3 {[%clk 0:00:52.3]}
59... Rf4 {[%clk 0:00:06.7]} 60. Ra6+ {[%clk 0:00:48.5]} 60... Rf6 {[%clk
0:00:07.1]} 61. Ra5 {[%clk 0:00:49.3]} 61... Re3 {[%clk 0:00:07.8]} 62. Rb5
{[%clk 0:00:48.8]} 62... Rf5 {[%clk 0:00:07.1]} 63. Rb6+ {[%clk 0:00:48]} 63...
Rf6 {[%clk 0:00:08.2]} 64. Rb5 {[%clk 0:00:49]} 64... Re7 {[%clk 0:00:07.1]} 65.
Rb4 {[%clk 0:00:48.6]} 65... Re5 {[%clk 0:00:07.3]} 66. Rc4 {[%clk 0:00:48.8]}
66... Rd6 {[%clk 0:00:08.2]} 67. Be4+ {[%clk 0:00:49.4]} 67... Kf6 {[%clk
0:00:08.7]} 68. Bf3 {[%clk 0:00:50.1]} 68... Re3 {[%clk 0:00:08.1]} 69. Rb4
{[%clk 0:00:50.2]} 69... Red3 {[%clk 0:00:08.8]} 70. Rb5 {[%clk 0:00:47.2]}
70... R6d4 {[%clk 0:00:09]} 71. Rb6+ {[%clk 0:00:47.5]} 71... Kg7 {[%clk
0:00:08.5]} 72. Rb7+ {[%clk 0:00:48.1]} 72... Kg6 {[%clk 0:00:08.8]} 73. Rb6+
{[%clk 0:00:48.8]} 73... Kf5 {[%clk 0:00:09.1]} 74. Rb5+ {[%clk 0:00:49.2]}
74... Kf6 {[%clk 0:00:10.2]} 75. Rb6+ {[%clk 0:00:50.1]} 75... Rd6 {[%clk
0:00:11.4]} 76. Rb4 {[%clk 0:00:49.7]} 76... R3d4 {[%clk 0:00:10.6]} 77. Rb5
{[%clk 0:00:49.1]} 77... Rf4 {[%clk 0:00:11.9]} 78. Ra5 {[%clk 0:00:47.7]} 78...
Kg6 {[%clk 0:00:12.6]} 79. Rb5 {[%clk 0:00:48.2]} 79... Kf6 {[%clk 0:00:13]} 80.
Ra5 {[%clk 0:00:49]} 80... Rf5 {[%clk 0:00:14.3]} 81. Ra4 {[%clk 0:00:49]} 81...
Re5 {[%clk 0:00:15.2]} 82. Rb4 {[%clk 0:00:49.5]} 82... Kg6 {[%clk 0:00:09.9]}
83. Ra4 {[%clk 0:00:49.7]} 83... Rc5 {[%clk 0:00:10]} 84. Rb4 {[%clk 0:00:50.3]}
84... Kf6 {[%clk 0:00:11]} 85. Ra4 {[%clk 0:00:51.1]} 85... Re6 {[%clk
0:00:08.3]} 86. Rb4 {[%clk 0:00:51.6]} 86... Rf5 {[%clk 0:00:08.1]} 87. Ra4
{[%clk 0:00:50.9]} 87... Rd6 {[%clk 0:00:07.2]} 88. Rb4 {[%clk 0:00:51.6]} 88...
Kg7 {[%clk 0:00:08.1]} 89. Ra4 {[%clk 0:00:52.2]} 89... Rdf6 {[%clk 0:00:08.5]}
90. Rb4 {[%clk 0:00:52.7]} 90... Rf4 {[%clk 0:00:08.3]} 91. Rb5 {[%clk
0:00:51.7]} 91... Kh6 {[%clk 0:00:09.4]} 92. Ra5 {[%clk 0:00:51.7]} 92... Rb4
{[%clk 0:00:10.3]} 93. Rc5 {[%clk 0:00:51.8]} 93... g4 {[%clk 0:00:10]} 94. Bxg4
{[%clk 0:00:43.1]} 94... Rg6 {[%clk 0:00:10.3]} 95. Rh5+ {[%clk 0:00:44]} 95...
Kg7 {[%clk 0:00:11.6]} 96. Rh4 {[%clk 0:00:45.1]} 96... Kf6 {[%clk 0:00:12]} 97.
Kh3 {[%clk 0:00:45.5]} 97... Rg5 {[%clk 0:00:09.2]} 98. Bf3 {[%clk 0:00:46]}
98... Rb1 {[%clk 0:00:09.4]} 99. Rg4 {[%clk 0:00:44.7]} 99... Rh5+ {[%clk
0:00:05.9]} 100. Kg3 {[%clk 0:00:45.6]} 100... Re5 {[%clk 0:00:07.2]} 101. Ra4
{[%clk 0:00:45]} 101... Rg5+ {[%clk 0:00:06.4]} 102. Kf2 {[%clk 0:00:43.5]}
102... Rb2+ {[%clk 0:00:07]} 103. Ke3 {[%clk 0:00:44.3]} 103... Re5+ {[%clk
0:00:07.9]} 104. Kf4 {[%clk 0:00:43.7]} 104... Rf5+ {[%clk 0:00:08.4]} 105. Kg3
{[%clk 0:00:44.2]} 105... Rg5+ {[%clk 0:00:09.5]} 106. Rg4 {[%clk 0:00:44.8]}
106... Rxg4+ {[%clk 0:00:08.3]} 107. Kxg4 {[%clk 0:00:45.4]} 107... Kg7 {[%clk
0:00:08.6]} 108. Kg5 {[%clk 0:00:45.5]} 108... Rxg2+ {[%clk 0:00:09.3]} 109.
Bxg2 {[%clk 0:00:45.7]} 1/2-1/2

[Event "*** MasterClass Titled Tuesday Blitz"]
[Site "Chess.com"]
[Date "2017.07.04"]
[Round "7"]
[White "dhanushbharadwaj"]
[Black "IMJonathanCarlstedt"]
[Result "1-0"]
[WhiteElo "2360"]
[BlackElo "2442"]
[TimeControl "180+2"]
[EndTime "14:32:15 PDT"]
[Termination "dhanushbharadwaj won by resignation"]

1. Nf3 {[%clk 0:02:58.9]} 1... d5 {[%clk 0:03:00.2]} 2. c4 {[%clk 0:02:57.4]}
2... d4 {[%clk 0:03:00.7]} 3. g3 {[%clk 0:02:57]} 3... Nc6 {[%clk 0:03:00]} 4.
Bg2 {[%clk 0:02:56.8]} 4... e5 {[%clk 0:03:01.5]} 5. O-O {[%clk 0:02:57.5]} 5...
e4 {[%clk 0:03:01.7]} 6. Ne1 {[%clk 0:02:57.9]} 6... f5 {[%clk 0:03:02.6]} 7. d3
{[%clk 0:02:55.4]} 7... Nf6 {[%clk 0:03:03.9]} 8. Bg5 {[%clk 0:02:55.2]} 8...
Be7 {[%clk 0:02:52.3]} 9. Bxf6 {[%clk 0:02:53.7]} 9... Bxf6 {[%clk 0:02:53.3]}
10. dxe4 {[%clk 0:02:55.3]} 10... fxe4 {[%clk 0:02:54.7]} 11. Bxe4 {[%clk
0:02:56]} 11... Bh3 {[%clk 0:02:56.2]} 12. Bg2 {[%clk 0:02:56.3]} 12... Bxg2
{[%clk 0:02:55.1]} 13. Kxg2 {[%clk 0:02:58.1]} 13... O-O {[%clk 0:02:55.8]} 14.
Nd2 {[%clk 0:02:58.4]} 14... Qd7 {[%clk 0:02:52.1]} 15. Nd3 {[%clk 0:02:57.3]}
15... Rae8 {[%clk 0:02:52.3]} 16. Re1 {[%clk 0:02:52.9]} 16... h5 {[%clk
0:02:50.5]} 17. Nf3 {[%clk 0:02:49.6]} 17... h4 {[%clk 0:02:49.4]} 18. Nf4
{[%clk 0:02:50.1]} 18... Re4 {[%clk 0:02:43.1]} 19. Qd3 {[%clk 0:02:45.1]} 19...
Rfe8 {[%clk 0:02:42.8]} 20. Rad1 {[%clk 0:02:42.8]} 20... hxg3 {[%clk
0:02:42.8]} 21. hxg3 {[%clk 0:02:41]} 21... Qg4 {[%clk 0:02:43.6]} 22. Nd5
{[%clk 0:02:31.9]} 22... Bd8 {[%clk 0:02:31]} 23. b4 {[%clk 0:02:22.7]} 23... a6
{[%clk 0:02:20.7]} 24. b5 {[%clk 0:02:20.4]} 24... axb5 {[%clk 0:02:21.3]} 25.
cxb5 {[%clk 0:02:22.3]} 25... Ne5 {[%clk 0:02:23]} 26. Nxe5 {[%clk 0:02:12.5]}
26... R4xe5 {[%clk 0:02:21.8]} 27. Nf4 {[%clk 0:02:04.9]} 27... g5 {[%clk
0:02:13.5]} 28. Qg6+ {[%clk 0:01:59.7]} 28... Kf8 {[%clk 0:02:12.6]} 29. Rh1
{[%clk 0:01:56.7]} 29... Qf5 {[%clk 0:02:03.9]} 30. Rh8+ {[%clk 0:01:52.8]} 1-0

[Event "*** MasterClass Titled Tuesday Blitz"]
[Site "Chess.com"]
[Date "2017.07.04"]
[Round "7"]
[White "playablecharacter"]
[Black "platy3"]
[Result "0-1"]
[WhiteElo "2020"]
[BlackElo "2612"]
[TimeControl "180+2"]
[EndTime "14:32:22 PDT"]
[Termination "platy3 won by checkmate"]

1. d4 {[%clk 0:03:01.9]} 1... Nf6 {[%clk 0:02:59.8]} 2. c4 {[%clk 0:03:00.2]}
2... e6 {[%clk 0:03:01.7]} 3. Nc3 {[%clk 0:03:01.1]} 3... Bb4 {[%clk 0:03:02.6]}
4. Qc2 {[%clk 0:02:59.9]} 4... O-O {[%clk 0:03:02.8]} 5. Nf3 {[%clk 0:03:00.5]}
5... b6 {[%clk 0:03:04]} 6. e4 {[%clk 0:03:01.2]} 6... Bb7 {[%clk 0:03:01.7]} 7.
Bd3 {[%clk 0:03:01.9]} 7... Bxc3+ {[%clk 0:03:01.7]} 8. bxc3 {[%clk 0:03:02.4]}
8... d5 {[%clk 0:02:59.9]} 9. e5 {[%clk 0:03:01.6]} 9... dxc4 {[%clk 0:02:59.2]}
10. Bxc4 {[%clk 0:02:50]} 10... Nd5 {[%clk 0:02:59.8]} 11. O-O {[%clk
0:02:46.8]} 11... Nd7 {[%clk 0:03:00.2]} 12. Qe4 {[%clk 0:02:36.3]} 12... c5
{[%clk 0:02:58]} 13. Ng5 {[%clk 0:02:32.1]} 13... g6 {[%clk 0:02:56.7]} 14. Qh4
{[%clk 0:02:26.2]} 14... h5 {[%clk 0:02:52.4]} 15. g4 {[%clk 0:01:43.7]} 15...
cxd4 {[%clk 0:02:48.5]} 16. cxd4 {[%clk 0:01:36.1]} 16... Rc8 {[%clk 0:01:54.9]}
17. Bd3 {[%clk 0:01:27.4]} 17... Rxc1 {[%clk 0:01:49.1]} 18. Raxc1 {[%clk
0:01:26.9]} 18... Nf4 {[%clk 0:01:50.3]} 19. gxh5 {[%clk 0:01:10.9]} 19... Qxg5+
{[%clk 0:01:50.3]} 20. Qg3 {[%clk 0:01:06.3]} 20... Nh3# {[%clk 0:01:50.6]} 0-1